Cogmind - Beta 15 @@@ ROGUE MODE // 2025.08.06 @ 21:06:49 Player: Zoe Result: Destroyed by Y-45 Defender with Heavy Assault Rifle Performance ------------- Evolutions (2) 1000 Regions Visited (5) 1000 Robots Destroyed (1) 5 Value Destroyed (10) 10 Prototype IDs (0) 0 Alien Tech Used (0) 0 Bonus (255) 255 TOTAL SCORE: 2270 Bonus ------- Pacifist 200 Follower Combat Kills 55 Cogmind --------- Core Integrity 0/550 Matter 286/300 Energy 100/100 System Corruption 0% Temperature Cool (9) Movement Core (50) Location -8/Storage Parts ------- > --- POWER (1) -------- (None) > --- PROPULSION (2) --- (None) > --- UTILITY (6) ------ (None) > --- WEAPON (2) ------- (None) > --- INVENTORY (5) ---- (None) Peak State ------------ None Favorites ----------- Power None Propulsion None Utility None Weapon None Build | -11 -10 -10 -10 -8 -8 ------- Run | Yrd Mat Min Sub Mat Sto Slots Evolved 4 | . . . . 4 . Power . | . . . . . . Propulsion . | . . . . . . Utility 4 | . . . . 4 . Weapon . | . . . . . . Parts Attached . | . . . . . . Power . | . . . . . . Engine . | . . . . . . Core . | . . . . . . Reactor . | . . . . . . Propulsion . | . . . . . . Treads . | . . . . . . Leg . | . . . . . . Wheel . | . . . . . . Hover . | . . . . . . Flight . | . . . . . . Utility . | . . . . . . Device . | . . . . . . Storage . | . . . . . . Processor . | . . . . . . Hackware . | . . . . . . Protection . | . . . . . . Artifact . | . . . . . . Weapon . | . . . . . . Energy Gun . | . . . . . . Energy Cannon . | . . . . . . Ballistic Gun . | . . . . . . Ballistic Cannon . | . . . . . . Launcher . | . . . . . . Special Weapon . | . . . . . . Impact Weapon . | . . . . . . Slashing Weapon . | . . . . . . Piercing Weapon . | . . . . . . Special Melee Weapon . | . . . . . . Unidentified Prototypes . | . . . . . . Parts Lost . | . . . . . . Power . | . . . . . . Propulsion . | . . . . . . Utility . | . . . . . . Weapon . | . . . . . . Highest Loss Streak . | . . . . . . To Critical Strikes . | . . . . . . Average Backups . | . . . . . . Power . | . . . . . . Propulsion . | . . . . . . Utility . | . . . . . . Weapon . | . . . . . . Tool/Special . | . . . . . . Unused Backups . | . . . . . . Power . | . . . . . . Propulsion . | . . . . . . Utility . | . . . . . . Weapon . | . . . . . . Tool/Special . | . . . . . . Average Slot Usage (%) . | . . . . . . Peak Build Rating . | . . . . . . Average Rating . | . . . . . . On Entrance . | . . . . . . Naked Turns 664 | . 76 212 199 88 89 Heaviest Build . | . . . . . . Greatest Support 3 | 3 3 3 3 3 3 Greatest Overweight (x) . | . . . . . . Average Overweight (x) . | . . . . . . Largest Inventory Capacity 5 | 5 5 5 5 5 5 Average Capacity 5 | 5 5 5 5 5 5 Most Carried . | . . . . . . Average Carried . | . . . . . . Final Capacity 5 | 5 5 5 5 5 5 Final Carried . | . . . . . . Class Distribution -------------------- 100% | Mutant Dominant Class ---------------- Mutant | -10/Materials Mutant | -10/Mines Mutant | -10/Subcaves Mutant | -8/Materials Mutant | -8/Storage Resources | -11 -10 -10 -10 -8 -8 ----------- Run | Yrd Mat Min Sub Mat Sto Matter Collected 180 | 180 . . . . . Remotely . | . . . . . . Salvage Created 13 | . . . . 13 . Parts 2 | . . . . 2 . Haulers Intercepted . | . . . . . . Recyclers Shooed . | . . . . . . Parts Field Recycled . | . . . . . . Retrieved Matter . | . . . . . . Parts Self-Destructed 4 | . . . 4 . . Prevented . | . . . . . . Kills | -11 -10 -10 -10 -8 -8 ------- Run | Yrd Mat Min Sub Mat Sto Combat Hostiles Destroyed 1 | . . . . 1 . Melee 1 | . . . . 1 . Classes Destroyed 1 | . . . . 1 . Swarmer 1 | . . . . 1 . Best Kill Streak 1 | . . . . 1 . Combat Bots Only 1 | . . . . 1 . Max Kills in Single Turn 1 | . . . . 1 . Gunslinging . | . . . . . . Exploded . | . . . . . . Melee 1 | . . . . 1 . Uniques/NPCs Destroyed . | . . . . . . Combat | -11 -10 -10 -10 -8 -8 -------- Run | Yrd Mat Min Sub Mat Sto Hostile Shots Fired 119 | . 47 . . 69 3 Missed 57 | . 27 . . 29 1 Hits 62 | . 20 . . 40 2 Projectile 62 | . 20 . . 40 2 Critical Strikes 1 | . . . . 1 . Damage Taken 718 | . 165 . . 520 33 Core 718 | . 165 . . 520 33 Absorbed by Shields . | . . . . . . Core Remaining (%) 67 | 100 . . 34 . . Volleys Fired . | . . . . . . Largest . | . . . . . . Hottest . | . . . . . . Shots Fired . | . . . . . . Gun . | . . . . . . Cannon . | . . . . . . Launcher . | . . . . . . Special . | . . . . . . Kinetic . | . . . . . . Thermal . | . . . . . . Explosive . | . . . . . . Electromagnetic . | . . . . . . Robot Hit Streak . | . . . . . . Robot Miss Streak . | . . . . . . Penetration Max . | . . . . . . Secondary Targets . | . . . . . . Shots Hit Robots . | . . . . . . Core Hits 1 | . . . . 1 . Critical Kills . | . . . . . . Critical Parts Destroyed . | . . . . . . Critical Strikes . | . . . . . . Melee Attacks . | . . . . . . Impact . | . . . . . . Slashing . | . . . . . . Piercing . | . . . . . . Sneak Attacks . | . . . . . . Combat Hostiles . | . . . . . . Follow-up Attacks . | . . . . . . Damage Inflicted 17 | . . . . 17 . Guns . | . . . . . . Cannons . | . . . . . . Explosions . | . . . . . . Melee . | . . . . . . Ramming 17 | . . . . 17 . Kinetic . | . . . . . . Thermal . | . . . . . . Explosive . | . . . . . . Electromagnetic . | . . . . . . Impact . | . . . . . . Slashing . | . . . . . . Piercing . | . . . . . . Highest Corruption . | . . . . . . Average Corruption . | . . . . . . Corruption Purged . | . . . . . . Corruption Blocked . | . . . . . . Overload Shots . | . . . . . . Overflow Damage . | . . . . . . Projectiles . | . . . . . . Explosions . | . . . . . . Melee . | . . . . . . Knockbacks . | . . . . . . Impact . | . . . . . . Kinetic . | . . . . . . Secondary . | . . . . . . Self-Inflicted Damage 8 | . . . . 8 . Shots . | . . . . . . Rammed 3 | . . . . 3 . Targets Rammed 3 | . . . . 3 . Kicked . | . . . . . . Crushed . | . . . . . . Highest Temperature . | . . . . . . Average Temperature . | . . . . . . Received Heat Transfer 36 | . . . . 27 9 Siege Activations . | . . . . . . Martial Activations . | . . . . . . Shielding Activations . | . . . . . . Robots Disrupted . | . . . . . . Combat Hostiles . | . . . . . . Robots Corrupted . | . . . . . . Combat Hostiles . | . . . . . . Parts Fried . | . . . . . . Impact Corruptions . | . . . . . . Robots Melted . | . . . . . . Combat Hostiles . | . . . . . . Parts Melted . | . . . . . . Heat Transferred . | . . . . . . Parts Sabotaged . | . . . . . . Parts Stolen . | . . . . . . Parts Stripped . | . . . . . . Power Chain Reactions . | . . . . . . Alert | -11 -10 -10 -10 -8 -8 ------- Run | Yrd Mat Min Sub Mat Sto Maximum Alert Level . | . . . . . . Low Security (%) 100 | 100 100 100 . 100 100 Level 1 . | . . . . . . Level 2 . | . . . . . . Level 3 . | . . . . . . Level 4 . | . . . . . . Level 5 . | . . . . . . High Security . | . . . . . . Max Security . | . . . . . . Peak Influence 52 | . 8 52 . 25 15 Initial 10 | . . 3 . . 10 Average 8 | . 1 13 . 6 6 Influence Increases 134 | . 8 52 . 44 30 Destroy 0b10 Robot/C 60 | . . 40 . 20 . Destroy Leader 10 | . . 10 . . . Allied During Kill 2 | . . 2 . . . Successful Hack 17 | . 8 . . 9 . Partial Spotted 30 | . . . . . 30 Lose Combat Pursuer 15 | . . . . 15 . Influence Decreases 119 | . . 48 12 19 40 Entered New Map 27 | . . 5 7 . 15 Time Decay 92 | . . 43 5 19 25 Squads Dispatched 4 | . . . . 3 1 Investigation 2 | . . . . 2 . Extermination . | . . . . . . Reinforcement 2 | . . . . 1 1 Assault . | . . . . . . Garrison . | . . . . . . Intercept . | . . . . . . Searches Triggered . | . . . . . . Construction Impeded . | . . . . . . Haulers Reinforced . | . . . . . . Active Scanning Responses . | . . . . . . Cargo Convoy Interrupts . | . . . . . . Stealth | -11 -10 -10 -10 -8 -8 --------- Run | Yrd Mat Min Sub Mat Sto Distress Signals 3 | . . . . 2 1 Communications Jammed . | . . . . . . Distress Signals . | . . . . . . Times Spotted 32 | . 7 . 2 17 6 Peak Tracking Total 18 | . 5 . 2 18 4 Tactical Retreats 1 | . . . . 1 . Traps | -11 -10 -10 -10 -8 -8 ------- Run | Yrd Mat Min Sub Mat Sto Traps Triggered 3 | . . . . 3 . Indirectly . | . . . . . . Trap Hack Attempts . | . . . . . . Triggered . | . . . . . . Disarmed . | . . . . . . Reprogrammed . | . . . . . . Reused . | . . . . . . Traps Extracted . | . . . . . . Installed . | . . . . . . Triggered . | . . . . . . Machines | -11 -10 -10 -10 -8 -8 ---------- Run | Yrd Mat Min Sub Mat Sto Machines Disabled . | . . . . . . Max in Single Turn . | . . . . . . Machines Repaired . | . . . . . . Machines Dismantled . | . . . . . . Machines Sabotaged . | . . . . . . Overloaded Fab Kills . | . . . . . . Hacking | -11 -10 -10 -10 -8 -8 --------- Run | Yrd Mat Min Sub Mat Sto Machines Accessed 3 | . 1 . . 2 . Terminals 3 | . 1 . . 2 . Fabricators . | . . . . . . Repair Stations . | . . . . . . Recycling Units . | . . . . . . Scanalyzers . | . . . . . . Garrison Access . | . . . . . . Total Hacks 8 | . 2 . . 6 . Successful 3 | . 1 . . 2 . Failed 5 | . 1 . . 4 . Catastrophic 1 | . . . . 1 . Database Lockouts . | . . . . . . Manual 6 | . 2 . . 4 . Terminals 8 | . 2 . . 6 . Fabricators . | . . . . . . Repair Stations . | . . . . . . Recycling Units . | . . . . . . Scanalyzers . | . . . . . . Garrison Access . | . . . . . . Terminal Hacks 1 | . 1 . . . . Branch Access Points 1 | . 1 . . . . Fabricator Hacks . | . . . . . . Repair Station Hacks . | . . . . . . Recycling Unit Hacks . | . . . . . . Scanalyzer . | . . . . . . Garrison Access Hacks . | . . . . . . Unauthorized Hacks 2 | . . . . 2 . Terminals 2 | . . . . 2 . Botnet 2 | . . . . 2 . Fabricators . | . . . . . . Repair Stations . | . . . . . . Recycling Units . | . . . . . . Scanalyzers . | . . . . . . Garrison Access . | . . . . . . Data Cores Recovered . | . . . . . . Used . | . . . . . . Hacking Detections 2 | . . . . 2 . Full Trace Events 2 | . . . . 2 . Feedback Events . | . . . . . . Feedback Blocked . | . . . . . . Robot Schematics Acquired . | . . . . . . Robots Built . | . . . . . . Authchips . | . . . . . . Time . | . . . . . . Total Robot Build Rating . | . . . . . . Part Schematics Acquired . | . . . . . . Parts Built . | . . . . . . Authchips . | . . . . . . Time . | . . . . . . Total Part Build Rating . | . . . . . . Parts Repaired . | . . . . . . Time . | . . . . . . Parts Recycled . | . . . . . . Recycled Matter . | . . . . . . Retrieved Matter . | . . . . . . Retrieved Components . | . . . . . . Parts Scanalyzed . | . . . . . . Part Schematics Acquired . | . . . . . . Parts Damaged . | . . . . . . Bothacking | -11 -10 -10 -10 -8 -8 ------------ Run | Yrd Mat Min Sub Mat Sto Used RIF Installer . | . . . . . . Robots Hacked . | . . . . . . Non-combat . | . . . . . . Combat . | . . . . . . Robot Hacks Applied . | . . . . . . Relay Couplers Released . | . . . . . . Fabnet Peak Effective % . | . . . . . . Robots Rewired . | . . . . . . Allies Hacked . | . . . . . . Hacks Repelled . | . . . . . . Allies | -11 -10 -10 -10 -8 -8 -------- Run | Yrd Mat Min Sub Mat Sto Total Allies 3 | . . 3 . . . Largest Group 3 | . . 3 2 . . Highest-Rated Group 40 | . . 40 24 . . Highest-Rated Ally 16 | . . 16 16 . . Total Orders . | . . . . . . Ally Attacks 23 | . . 12 11 . . Total Damage 257 | . . 126 131 . . Kills 3 | . . 2 1 . . Allies Corrupted . | . . . . . . Allies Melted . | . . . . . . Intel | -11 -10 -10 -10 -8 -8 ------- Run | Yrd Mat Min Sub Mat Sto Active Infowar (turns) . | . . . . . . Robot Analysis Total . | . . . . . . Derelict Logs Recovered . | . . . . . . Drone Launches . | . . . . . . Drone Recoveries . | . . . . . . Exploration | -11 -10 -10 -10 -8 -8 ------------- Run | Yrd Mat Min Sub Mat Sto Turns Passed 681 | 17 76 212 199 88 89 Spaces Moved 904 | 34 85 219 222 170 174 Core 904 | 34 85 219 222 170 174 Treads . | . . . . . . Legs . | . . . . . . Wheels . | . . . . . . Hover . | . . . . . . Flight . | . . . . . . Fastest Speed 50 | 50 50 50 50 50 50 Average Speed 50 | 50 50 50 50 50 50 Slowest Speed 50 | 50 50 50 50 50 50 Overloaded Moves . | . . . . . . Propulsion Burnouts . | . . . . . . Robots Hopped . | . . . . . . Potential Cave-ins . | . . . . . . Cave-ins Triggered . | . . . . . . Exploration Rate (%) 25 | 3 25 39 23 30 35 Regions Visited 5 Branch Regions 3 Pre-discovered Areas . | . . . . . . Known Exits Taken 1 | . 1 . . . . Unknown Exits Taken 4 | 1 . 1 1 1 . Scrap Searched . | . . . . . . Spaces Dug . | . . . . . . Terrain Destroyed . | . . . . . . Melee . | . . . . . . Projectile . | . . . . . . AOE . | . . . . . . Terrain Rammed . | . . . . . . Walls Destroyed . | . . . . . . Machines Disabled . | . . . . . . Actions | -11 -10 -10 -10 -8 -8 --------- Run | Yrd Mat Min Sub Mat Sto Total 1127 | 33 117 320 309 172 176 Wait 225 | . 33 102 88 . 2 Move 900 | 33 84 218 221 170 174 Hop . | . . . . . . Pick Up . | . . . . . . Fast Attach . | . . . . . . Attach . | . . . . . . Detach . | . . . . . . Swap . | . . . . . . Drop . | . . . . . . Fire . | . . . . . . Melee . | . . . . . . Ram 2 | . . . . 2 . Kick . | . . . . . . Crush . | . . . . . . Escape Stasis . | . . . . . . Rewire . | . . . . . . Trap . | . . . . . . Miscellaneous . | . . . . . . Route ------- -11/Scrapyard -10/Materials (discovered 2 exits: *Min x2) -10/Mines (discovered 2 exits: [*Mat] / [*Sub]) -10/Subcaves -8/Materials -8/Storage History --------- Turn | Location | Event 5 | -11/Scrapyard | Discovered new exit (range 12) 18 | -11/Scrapyard | Entered Materials 82 | -10/Materials | Core integrity fell below 50% 83 | -10/Materials | Identified exit to Mines 94 | -10/Materials | Entered Mines 95 | -10/Mines | Assisted by bots powering up and referring to "LRC-V3" 145 | -10/Mines | Found a damaged Exp. Sensor Array with a note attached 205 | -10/Mines | Discovered new exit (range 9) 247 | -10/Mines | Received a Rocket Launcher from a helpful Derelict 292 | -10/Mines | Discovered new exit (range 6) 305 | -10/Mines | Build established: Mutant 306 | -10/Mines | Entered Subcaves 306 | -10/Subcaves | Accompanied by 2 allies 430 | -10/Subcaves | Shifting Twisted Machinery released Battle Cannon 432 | -10/Subcaves | Shifting Twisted Machinery released Sub. Shrapnel Launcher 500 | -10/Subcaves | Discovered new exit (range 10) 503 | -10/Subcaves | Ambushed by Subdwellers from Twisted Machinery 505 | -10/Subcaves | Entered Materials 505 | -8/Materials | Evolved 4 slots: Utility x4 582 | -8/Materials | Discovered new exit (range 16) 584 | -8/Materials | Core integrity fell below 50% 591 | -8/Materials | Core integrity fell below 20% 593 | -8/Materials | Entered Storage 682 | -8/Storage | Destroyed by Y-45 Defender with Heavy Assault Rifle Last Messages --------------- Terminal disabled. K-01 Serf collects debris. S-10 Pest destroyed. Knocked back. Slammed into H-61 Shepherd. H-61 Shepherd calls for reinforcements. ALERT: Hostile activity reported, dispatching reinforcements to area. Knocked back. S-10 Pest destroyed. Slammed into H-61 Shepherd. LOCATION=UNKNOWN GOAL=ESCAPE K-01 Serf collects debris. O-16 Technician: "IFF HANDSHAKE FAILED. SECURING TERMINAL." O-16 Technician sends out distress signal. ALERT: Hostiles spotted, dispatching reinforcements to Terminal S002. K-01 Serf collects debris. Map ----- +----------------------------------------------------+ | ???????# ?# ????????????????????? | | ???????# #? ???????????????????? | | ???????? ##+########???????????? | | ???????? #????######## | | ????????? #????# | | ??????# """ ""#????# | | ???????# """ Y"#????# | | ???????# """ ""###### | | ???????# # | | ???????# # | | ???????# ########+##### ######## | | ???????? ??????# ??# # | | ???????? ?????#T #?# # """ | | ???????# ?????##" "##?# # ""?? | | ???????# ??????? ???# # ""??? | | ??????## #?????? ???# + "???" | | ??????# ?????? =???# # "??"" | | ??????+ ?????? = ???# # """" | | ??????# Y ??????###???# # | | ??????? ???########## ####### | | ???????# #???# ## #??#### | | ???????# #???# ## #? [ | | ???????# #???# ! ## #? * | | ?????+## #####[ ## # = | | ????# r + ## # ! | | ????#####@##### ## + | | ????# # ## # | | ????# "T" # * ## # | | ????# # ## #?##### | | ????#= # ! ## #?????? | | ????########### ## ##????? | | ???????# = #####+#### #????? | | ???????# #????? | | ???????# " T #????? | | ???????# +????? | | ???????# ########## #????? | | ???????## ##????????## ##????? | | ????????# #??????????# #?????? | | ????????# #??????????# #?????? | | ????????# #??????????# #?????? | | ??????### #??????????# #?????? | | ??????" + ##T#???????? #?????? | | ??????#T# + "???????? #?????? | | ????????# # [[#??? ?????? | | ????????# #??" [[#??? ?????? | | ????????# #?????[[#??? ????? | | ????????#####????????????#???????? | | ?????????????????????????????????? | | ?????????????????????????????????? | | ?????????????????????????????????? | +----------------------------------------------------+ Best States ------------- Heat Dissipation 31 Energy Generation 5 Energy Capacity 100 Matter Stores 286 Matter Capacity 300 Sight Range 16 Terrain Scan Density 10 Evasion (%) 50 Item Schematics ----------------- None Robot Schematics ------------------ None Fabricated ------------ Nothing Repaired ---------- Nothing Alien Tech Used ----------------- None Achievements -------------- Fist Fight Challenges ------------ None Game ------ Seed CoilJunkCharge Manual? 0 Play Time 00:11:19 Cumulative 26.3 hours Start 2025.08.06 @ 20:49:11 End 2025.08.06 @ 21:06:49 Sessions 1 Manual Loads 0 Difficulty Rogue Special Mode None Game No. 52 Rogue 49 Adventurer 3 Explorer 0 Win Type - Total 0 Types 0/0/0/0/0/0/0/0/0/0 Lore% 15 Gallery% 20 Achievement% 23 Wizard Run 0 Options --------- Layout 1 ASCII 0 Keyboard 0 Movement Mouse Keybinds 0 Fullscreen 1 Font 24/Smallcaps Map View 50x35 Zoom Use 0% Tactical HUD 0 Map Filters NONE Filters NONE Steam 1 RUN: 87a551da-1286-4e1f-b2eb-62022a4c432f